bitfinex/quotes_SOLUSD_20240825
["timestamp","ask_amount","ask_price","bid_price","bid_amount"]
[1724552126878,9.7631095,158.77,158.69,4.57756391]
[1724552127179,16.5686,158.79,158.69,9.7631095]
[1724552127368,16.5686,158.79,158.7,1.25994108]
[1724552127546,16.5686,158.79,158.69,9.7631095]
[1724552127547,16.5686,158.79,158.71,9.7631095]
[1724552127743,16.5686,158.79,158.73,9.7631095]
[1724552127946,16.5686,158.79,158.74,1.25965889]
[1724552128253,16.5686,158.79,158.71,20.0]
[1724552128443,16.5686,158.79,158.73,9.7631095]
[1724552128783,16.5686,158.79,158.74,20.0]
[1724552128950,16.5686,158.79,158.75,56.02272282]
[1724552129150,16.5686,158.79,158.75,54.7631095]
[1724552130179,16.5686,158.79,158.74,20.0]
[1724552130376,16.5686,158.79,158.73,20.0]
[1724552132990,16.5686,158.79,158.74,9.7631095]
[1724552133573,16.5686,158.79,158.73,20.0]
[1724552143202,16.5686,158.79,158.71,9.7631095]
[1724552143383,16.5686,158.79,158.72,20.0]
[1724552144378,26.3317095,158.79,158.72,20.0]
[1724552144579,26.3317095,158.79,158.71,20.0]
[1724552145300,21.6678,158.78,158.66,7.0928821]
[1724552145597,9.7631095,158.77,158.67,9.7631095]
[1724552145793,21.6678,158.78,158.69,9.7631095]
[1724552146199,21.6678,158.78,158.68,1.26010375]
[1724552146493,6.55354506,158.77,158.69,9.7631095]
[1724552146804,6.55354506,158.77,158.7,20.0]
[1724552153994,9.7631095,158.75,158.7,20.0]
[1724552154195,9.7631095,158.75,158.62,20.0]
[1724552154504,9.7631095,158.75,158.66,9.7631095]
[1724552154680,9.7631095,158.75,158.67,20.0]
[1724552156802,16.33205652,158.75,158.67,20.0]
[1724552157588,6.56894702,158.75,158.67,20.0]
[1724552157798,6.56894702,158.75,158.68,11.02327991]
[1724552157997,6.56894702,158.75,158.69,20.0]
[1724552161114,6.56894702,158.75,158.67,20.0]
[1724552161619,16.33205652,158.75,158.67,20.0]
[1724552161809,16.33205652,158.75,158.62,29.29534593]
[1724552162018,16.33205652,158.75,158.64,9.7631095]
[1724552162192,16.33205652,158.75,158.65,65.0]
[1724552163520,16.33205652,158.75,158.65,74.7631095]
[1724552164986,16.33205652,158.75,158.65,65.0]
[1724552165610,16.33205652,158.75,158.65,20.0]
[1724552166001,16.33205652,158.75,158.66,9.7631095]
[1724552166201,16.33205652,158.75,158.67,20.0]
[1724552167393,16.33205652,158.75,158.66,9.7631095]
[1724552167598,16.33205652,158.75,158.67,20.0]
[1724552168310,6.56894702,158.75,158.67,20.0]
[1724552168709,6.56894702,158.75,158.68,1.26021576]
[1724552168909,6.56894702,158.75,158.68,11.02332526]
[1724552169109,6.56894702,158.75,158.69,20.0]
[1724552169318,22.4454,158.76,158.69,20.0]
[1724552172325,22.4454,158.76,158.67,9.7631095]
[1724552172528,22.4454,158.76,158.68,20.0]
[1724552174413,22.4454,158.76,158.68,27.38700917]
[1724552177619,22.4454,158.76,158.68,20.0]
[1724552177812,22.4454,158.76,158.68,27.38697031]
[1724552178016,22.4454,158.76,158.68,20.0]
[1724552178420,22.4454,158.76,158.68,27.38697031]
[1724552179927,22.4454,158.76,158.69,9.7631095]
[1724552180117,22.4454,158.76,158.7,20.0]
[1724552184537,22.4454,158.76,158.67,9.7631095]
[1724552184737,22.4454,158.76,158.68,65.0]
[1724552185041,22.4454,158.76,158.69,7.38701397]
[1724552185215,22.4454,158.76,158.7,20.0]
[1724552187230,22.4454,158.76,158.69,20.0]
[1724552187537,22.4454,158.76,158.69,7.38699787]
[1724552187715,32.2085095,158.76,158.66,9.7631095]
[1724552188124,32.2085095,158.76,158.67,7.38699787]
[1724552188422,32.2085095,158.76,158.68,7.38699787]
[1724552188617,32.2085095,158.76,158.67,7.38699787]
[1724552189116,32.2085095,158.76,158.68,20.0]
[1724552190516,32.2085095,158.76,158.68,7.38773986]
[1724552190712,32.2085095,158.76,158.67,27.38773986]
[1724552191724,32.2085095,158.76,158.68,7.38773986]
[1724552193339,22.4454,158.76,158.68,7.38773986]
[1724552193540,22.4454,158.76,158.67,27.38773986]
[1724552194042,22.4454,158.76,158.68,7.38773986]
[1724552194348,22.4454,158.76,158.67,20.0]
[1724552195343,22.4454,158.76,158.68,7.38773986]
[1724552196957,22.4454,158.76,158.67,20.0]
[1724552197119,22.4454,158.76,158.68,7.38758242]
[1724552197627,22.4454,158.76,158.67,20.0]
[1724552197811,22.4454,158.76,158.68,7.38758242]
[1724552199942,9.7631095,158.75,158.68,7.38758242]
[1724552200149,39.052438,158.8,158.61,7.0928821]
[1724552200150,6.1048,158.7,158.61,7.0928821]
[1724552200341,9.7631095,158.69,158.68,7.38817898]
[1724552200522,9.7631095,158.69,158.6,7.38817898]
[1724552200841,9.7631095,158.69,158.61,7.38817898]
[1724552201054,9.7631095,158.69,158.62,7.38817898]
[1724552201341,9.7631095,158.69,158.6,7.38817898]
[1724552201639,9.7631095,158.69,158.61,7.38817898]
[1724552201942,9.7631095,158.69,158.61,27.38817898]
[1724552202147,9.7631095,158.69,158.62,7.38817898]
[1724552202325,15.6159,158.68,158.62,7.38817898]
[1724552202648,15.6159,158.68,158.58,9.7631095]
[1724552202942,15.6159,158.68,158.59,7.38817898]
[1724552203316,15.6159,158.68,158.58,9.7631095]
[1724552203738,15.8679095,158.67,158.58,9.7631095]
[1724552204052,15.8679095,158.67,158.58,11.02400964]
[1724552204256,15.8679095,158.67,158.59,20.0]
[1724552204433,15.8679095,158.67,158.59,27.38817898]
[1724552205433,15.8679095,158.67,158.59,20.0]
[1724552206958,15.8679095,158.67,158.58,27.39118066]
[1724552207247,15.8679095,158.67,158.58,20.0]
[1724552207751,15.8679095,158.67,158.58,21.2608986]
[1724552209539,15.8679095,158.67,158.58,20.0]
[1724552214246,15.8679095,158.67,158.59,1.26089786]
[1724552215367,15.8679095,158.67,158.58,20.0]
[1724552216065,15.8679095,158.67,158.59,1.26088763]
[1724552218469,15.8679095,158.67,158.59,11.02399713]
[1724552218766,15.8679095,158.67,158.6,20.0]
[1724552219456,15.8679095,158.67,158.58,20.0]
[1724552220761,15.8679095,158.67,158.56,29.7631095]
[1724552220952,15.8679095,158.67,158.57,47.74501157]
[1724552221149,16.5872,158.66,158.58,20.0]
[1724552221668,16.5872,158.66,158.59,1.26022571]
[1724552221877,16.5872,158.66,158.59,21.26022571]
[1724552223244,16.5872,158.66,158.59,20.0]
[1724552225271,26.3503095,158.66,158.59,20.0]
[1724552225574,26.3503095,158.66,158.57,20.0]
[1724552228954,16.5872,158.66,158.57,20.0]
[1724552229249,32.92110065,158.66,158.57,20.0]
[1724552232283,32.92110065,158.66,158.58,2.74498533]
[1724552233888,32.92110065,158.66,158.57,20.0]
[1724552234484,32.92110065,158.66,158.58,5.49001253]
[1724552234683,32.92110065,158.66,158.59,20.0]
[1724552235354,32.92110065,158.66,158.58,2.74500609]
[1724552235687,23.15799115,158.66,158.58,5.49001218]
[1724552235984,23.15799115,158.66,158.59,20.0]
[1724552236159,16.5872,158.66,158.59,20.0]
[1724552238255,16.5872,158.66,158.6,1.26078466]
[1724552238473,16.5872,158.66,158.6,4.00559849]
[1724552238677,16.5872,158.66,158.6,2.74481383]
[1724552238882,16.5872,158.66,158.6,4.00559849]
[1724552239190,16.5872,158.66,158.6,2.74481383]
[1724552239986,16.5872,158.66,158.6,4.00559433]
[1724552240481,16.5872,158.66,158.6,8.58701997]
[1724552240986,16.5872,158.66,158.6,4.00559433]
[1724552241199,16.5872,158.66,158.6,8.58704401]
[1724552242085,16.5872,158.66,158.6,17.08937301]
[1724552242276,16.5872,158.66,158.61,27.32626351]
[1724552242483,16.5872,158.66,158.62,2.74481383]
[1724552243376,16.5872,158.66,158.61,20.0]
[1724552243558,16.5872,158.66,158.62,7.32596716]
[1724552243762,16.5872,158.66,158.61,20.0]
[1724552243960,16.5872,158.66,158.62,7.32596756]
[1724552244183,16.5872,158.66,158.62,4.5812921]
[1724552244579,16.5872,158.66,158.62,9.16265813]
[1724552244982,16.5872,158.66,158.62,4.58136603]
[1724552245393,16.5872,158.66,158.63,4.58136603]
[1724552245690,16.5872,158.66,158.61,27.39102376]
[1724552245859,16.5872,158.66,158.62,11.97239251]
[1724552246063,16.5872,158.66,158.63,4.58136875]
[1724552246262,16.5872,158.66,158.62,7.39102376]
[1724552246513,16.5872,158.66,158.63,4.58136795]
[1724552246696,16.5872,158.66,158.62,7.39102376]
[1724552247004,16.5872,158.66,158.63,4.58136795]
[1724552247165,16.5872,158.66,158.62,7.39102376]
[1724552247490,16.5872,158.66,158.63,4.58136835]
[1724552247694,16.5872,158.66,158.62,7.39102376]
[1724552247873,16.5872,158.66,158.63,4.5813208]
[1724552248183,16.5872,158.66,158.64,4.5813208]
[1724552248392,16.5872,158.66,158.59,20.0]
[1724552248594,16.5872,158.66,158.6,56.97215862]
[1724552248896,16.5872,158.66,158.61,33.23278932]
[1724552249199,16.5872,158.66,158.62,11.97215862]
[1724552249360,16.5872,158.66,158.63,4.58128186]
[1724552249566,16.5872,158.66,158.64,4.58128186]
[1724552249760,16.5872,158.66,158.64,4.58129108]
[1724552250071,16.5872,158.66,158.61,20.0]
[1724552250266,16.5872,158.66,158.62,11.97225248]
[1724552250483,16.5872,158.66,158.63,4.58131742]
[1724552250792,16.5872,158.66,158.61,20.0]
[1724552250793,26.3503095,158.66,158.62,7.39097787]
[1724552250965,26.3503095,158.66,158.63,4.58144566]
[1724552251168,26.3503095,158.66,158.59,27.39097787]
[1724552251366,26.3503095,158.66,158.6,11.9724165]
[1724552251593,26.3503095,158.66,158.61,31.9724165]
[1724552251795,6.56657011,158.68,158.51,6.5079]
[1724552251796,6.5418,158.63,158.62,4.58143863]
[1724552251973,22.6092,158.63,158.62,4.58143863]
[1724552252176,22.6092,158.63,158.57,11.97304408]
[1724552252374,9.7631095,158.62,158.58,11.97304408]
[1724552252573,9.7631095,158.62,158.59,4.58143863]
[1724552252807,9.7631095,158.62,158.53,9.7631095]
[1724552253119,9.7631095,158.62,158.54,11.97512032]
[1724552253311,9.7631095,158.62,158.55,11.97512032]
[1724552253490,9.7631095,158.62,158.56,31.97512032]
[1724552253695,9.7631095,158.62,158.57,31.97512032]
[1724552253904,9.7631095,158.62,158.58,11.97512032]
[1724552254201,22.6092,158.63,158.59,4.58243578]
[1724552254409,22.6092,158.63,158.54,20.0]
[1724552254410,22.6092,158.63,158.56,20.0]
[1724552254595,22.6092,158.63,158.57,4.58245565]
[1724552254995,22.6092,158.63,158.57,11.97525628]
[1724552255192,22.6092,158.63,158.58,4.582266]
[1724552255406,22.6092,158.63,158.59,4.582266]
[1724552255591,22.6092,158.63,158.57,7.39248979]
[1724552255900,22.6092,158.63,158.58,4.58236222]
[1724552256093,22.6092,158.63,158.59,4.58236222]
[1724552256294,22.6092,158.63,158.56,27.39248979]
[1724552256494,22.6092,158.63,158.57,11.97403053]
[1724552256818,22.6092,158.63,158.58,4.58154074]
[1724552256986,22.6092,158.63,158.59,4.58154074]
[1724552257185,22.6092,158.63,158.58,4.58110685]
[1724552257394,22.6092,158.63,158.59,4.5799828]
[1724552257720,22.6092,158.63,158.58,4.5799828]
[1724552257913,22.6092,158.63,158.59,4.5799828]
[1724552258112,22.6092,158.63,158.57,7.39248979]
[1724552258311,22.6092,158.63,158.58,4.58010114]
[1724552258613,22.6092,158.63,158.59,4.58010114]
[1724552258918,22.6092,158.63,158.57,7.39248979]
[1724552259117,22.6092,158.63,158.58,4.57885778]
[1724552259317,22.6092,158.63,158.59,4.57885778]
[1724552259522,22.6092,158.63,158.57,7.39248979]
[1724552259818,32.3723095,158.63,158.58,4.57805115]
[1724552259998,32.3723095,158.63,158.59,4.57805115]
[1724552260328,32.3723095,158.63,158.58,4.57805115]
[1724552260622,32.3723095,158.63,158.59,4.57805115]
[1724552260804,32.3723095,158.63,158.58,4.57805115]
[1724552261121,32.3723095,158.63,158.57,7.39248979]
[1724552261122,32.3723095,158.63,158.59,4.57805115]
[1724552261295,32.3723095,158.63,158.58,4.57805115]
[1724552261506,32.3723095,158.63,158.59,4.57805115]
[1724552261696,32.3723095,158.63,158.58,4.57805115]
[1724552261897,32.3723095,158.63,158.59,4.57805115]
[1724552262116,32.3723095,158.63,158.58,4.57805115]
[1724552262313,32.3723095,158.63,158.59,4.57805115]
[1724552262629,22.6092,158.63,158.58,4.57628339]
[1724552262995,22.6092,158.63,158.59,4.57628339]
[1724552263496,22.6092,158.63,158.58,4.57628339]
[1724552263817,22.6092,158.63,158.59,4.57628339]
[1724552264045,22.6092,158.63,158.58,4.57628339]
[1724552264323,22.6092,158.63,158.59,4.57628339]
[1724552264500,22.6092,158.63,158.58,4.57628339]
[1724552264695,22.6092,158.63,158.59,4.57628339]
[1724552264895,22.6092,158.63,158.58,4.57628339]
[1724552265100,6.56930254,158.66,158.59,5.83711624]
[1724552265315,22.6438,158.67,158.6,4.57628339]
[1724552265502,22.6438,158.67,158.61,4.57628339]
[1724552265700,22.6438,158.67,158.59,24.57628339]
[1724552265994,22.6438,158.67,158.59,20.0]
[1724552266215,22.6438,158.67,158.6,11.94077872]
[1724552266409,22.6438,158.67,158.61,4.56927114]
[1724552266630,22.6438,158.67,158.62,4.56927114]
[1724552266821,22.6438,158.67,158.61,24.56927114]
[1724552266992,22.6438,158.67,158.62,4.56927114]
[1724552269332,22.6438,158.67,158.62,4.56160866]
[1724552269827,22.6438,158.67,158.61,11.92533554]
[1724552270026,22.6438,158.67,158.62,4.56160866]
[1724552270405,22.6438,158.67,158.61,4.56160866]
[1724552270599,22.6438,158.67,158.62,4.56160866]
[1724552270829,22.6438,158.67,158.61,4.56160866]
[1724552271135,22.6438,158.67,158.62,4.56543103]
[1724552271329,22.6438,158.67,158.63,9.7631095]
[1724552271502,22.6438,158.67,158.64,1.25774089]
[1724552271697,6.56195109,158.68,158.64,1.25774089]
[1724552271698,6.56195109,158.68,158.64,21.25774089]
[1724552271921,22.6438,158.71,158.65,5.81933968]
[1724552272097,22.6438,158.71,158.66,5.81931523]
[1724552272304,22.6438,158.71,158.66,1.25783928]
[1724552272503,22.6438,158.71,158.66,21.25783928]
[1724552272724,22.6438,158.71,158.66,25.81186881]
[1724552272915,22.6438,158.75,158.67,14.31713903]
[1724552275728,22.6438,158.75,158.67,9.7631095]
[1724552275914,22.6438,158.75,158.67,14.31795698]
[1724552276429,22.6438,158.75,158.67,9.7631095]
[1724552278130,22.6438,158.75,158.69,9.7631095]
[1724552281614,16.4207,158.75,158.69,9.7631095]
[1724552281827,16.4207,158.75,158.7,65.0]
[1724552283050,16.4207,158.75,158.7,74.7631095]
[1724552283254,16.4207,158.75,158.71,0.83371762]
[1724552283421,16.4207,158.75,158.7,74.7631095]
[1724552283622,16.4207,158.75,158.7,65.0]
[1724552283822,16.4207,158.75,158.7,20.0]
[1724552284053,16.4207,158.75,158.68,9.7631095]
[1724552284347,16.4207,158.75,158.69,65.0]
[1724552287047,16.4207,158.75,158.7,9.7631095]
[1724552291162,6.1885,158.74,158.69,20.0]
[1724552291366,6.1885,158.74,158.68,20.0]
[1724552291571,6.1885,158.74,158.65,9.7631095]
[1724552291939,6.1885,158.74,158.66,1.26027234]
[1724552292256,6.1885,158.74,158.65,9.7631095]
[1724552292655,9.7631095,158.73,158.65,9.7631095]
[1724552292859,9.7631095,158.73,158.66,20.0]
[1724552293752,9.7631095,158.71,158.61,17.57821382]
[1724552294636,9.7631095,158.71,158.63,9.7631095]
[1724552296365,16.4408,158.72,158.63,9.7631095]
[1724552296660,16.4408,158.72,158.65,9.7631095]
[1724552301647,16.4408,158.72,158.66,1.26033807]
[1724552301858,16.4408,158.72,158.67,11.02332]
[1724552302474,6.1885,158.74,158.67,11.02332]
[1724552302770,6.1885,158.74,158.68,20.0]
[1724552302957,6.1885,158.74,158.69,1.26011359]
[1724552303162,6.1885,158.74,158.68,20.0]
[1724552303861,6.1885,158.74,158.69,1.25932224]
[1724552308964,6.1885,158.74,158.68,20.0]
[1724552314186,6.1885,158.74,158.69,2.73083761]
[1724552315089,6.1885,158.74,158.68,20.0]
[1724552315261,6.1885,158.74,158.69,3.98026577]
[1724552316274,6.1885,158.74,158.69,8.54109473]
[1724552316666,6.1885,158.74,158.69,7.29196999]
[1724552319287,6.1885,158.74,158.69,8.30955658]
[1724552319973,6.1885,158.74,158.69,7.29196999]
[1724552320359,6.1885,158.74,158.69,17.05507949]
[1724552320566,6.1885,158.74,158.7,2.73114103]
[1724552320765,6.1885,158.74,158.69,12.49425053]
[1724552322488,6.1885,158.74,158.7,8.24779913]
[1724552322692,6.1885,158.74,158.71,0.95684467]
[1724552322893,6.1885,158.74,158.7,7.29154795]
[1724552323763,6.1885,158.74,158.69,9.7631095]
[1724552323983,6.1885,158.74,158.7,67.73203913]
[1724552324390,6.1885,158.74,158.71,2.73203913]
[1724552324585,6.1885,158.74,158.7,65.0]
[1724552326098,6.1885,158.74,158.71,1.2599708]
[1724552326399,6.1885,158.74,158.7,65.0]
[1724552326892,6.1885,158.74,158.7,20.0]
[1724552327098,6.1885,158.74,158.68,9.7631095]
[1724552327099,6.1885,158.74,158.69,21.26010317]
[1724552327278,6.1885,158.74,158.69,20.0]
[1724552327484,6.1885,158.74,158.69,21.26005752]
[1724552329000,6.1885,158.74,158.69,20.0]
[1724552329204,6.1885,158.74,158.69,21.26006475]
[1724552329585,6.1885,158.74,158.69,20.0]
[1724552329780,6.1885,158.74,158.69,21.26006361]
[1724552329981,6.1885,158.74,158.69,20.0]
[1724552330291,6.1885,158.74,158.69,21.25934898]
[1724552330506,6.1885,158.74,158.7,1.25926962]
[1724552331479,15.6817,158.76,158.7,15.58562688]
[1724552331700,15.6817,158.76,158.71,1.25948445]
[1724552332916,15.6817,158.76,158.7,14.32635726]
[1724552333207,15.6817,158.76,158.71,45.0]
[1724552334297,15.6817,158.76,158.69,20.0]
[1724552334490,15.6817,158.76,158.69,9.7631095]
[1724552334691,15.6817,158.76,158.7,20.0]
[1724552335209,15.6817,158.76,158.71,4.56043409]
[1724552335401,15.6817,158.76,158.7,20.0]
[1724552338021,15.6817,158.76,158.71,4.5607055]
[1724552340619,15.8960095,158.75,158.64,7.81510432]
[1724552340825,15.8960095,158.75,158.65,9.7631095]
[1724552341028,15.8960095,158.75,158.65,21.69170511]
[1724552341339,6.56349359,158.74,158.66,4.56520966]
[1724552341504,6.56349359,158.74,158.67,4.56520966]
[1724552341704,6.56349359,158.74,158.68,4.56520966]
[1724552341906,6.56349359,158.74,158.66,4.56520966]
[1724552342100,6.56349359,158.74,158.67,4.56520966]
[1724552342319,9.7631095,158.73,158.68,4.56520966]
[1724552342628,15.6626,158.72,158.66,20.0]
[1724552342841,15.6626,158.72,158.67,24.56157417]
[1724552343126,15.6626,158.72,158.67,20.0]
[1724552343331,15.6626,158.72,158.66,20.0]
[1724552343511,15.6626,158.72,158.67,4.55981009]
[1724552343829,15.6626,158.72,158.65,27.35620225]
[1724552344136,15.6626,158.72,158.66,49.55911544]
[1724552344314,15.6626,158.72,158.67,24.55911544]
[1724552344514,15.6626,158.72,158.67,20.0]
[1724552345013,15.6626,158.72,158.66,20.0]
[1724552345212,15.6626,158.72,158.67,4.55942839]
[1724552345413,15.6626,158.72,158.66,20.0]
[1724552345414,15.6626,158.72,158.68,4.55942839]
[1724552345619,15.6626,158.72,158.67,4.55942839]
[1724552345826,15.6626,158.72,158.68,4.55942839]
[1724552346131,15.6626,158.72,158.69,4.55942839]
[1724552346315,15.6626,158.72,158.68,4.55942839]
[1724552346514,15.6626,158.72,158.67,20.0]
[1724552346712,15.6626,158.72,158.69,4.5572602]
[1724552346919,15.6626,158.72,158.67,7.35207859]
[1724552347234,15.6626,158.72,158.68,4.55717287]
[1724552347526,15.6626,158.72,158.69,4.55717287]
[1724552347702,15.6626,158.72,158.67,7.35207859]
[1724552347897,15.6626,158.72,158.68,4.55716036]
[1724552348136,15.6626,158.72,158.69,4.55716036]
[1724552348338,15.6626,158.72,158.67,7.35207859]
[1724552348642,15.6626,158.72,158.68,4.55485968]
[1724552348806,15.6626,158.72,158.69,4.55485968]
[1724552349129,15.6626,158.72,158.67,17.11518809]
[1724552349337,15.6626,158.72,158.68,4.55427567]
[1724552349532,15.6626,158.72,158.69,4.55427567]
[1724552349727,15.6626,158.72,158.67,17.11518809]
[1724552350035,15.6626,158.72,158.68,4.55327254]
[1724552350220,15.6626,158.72,158.69,4.55327254]
[1724552350420,15.6626,158.72,158.7,4.55327254]
[1724552350624,15.6626,158.72,158.68,4.55327254]
[1724552350839,15.6626,158.72,158.69,4.55327254]
[1724552351025,15.6626,158.72,158.67,17.11518809]
[1724552351226,15.6626,158.72,158.68,4.55274813]
[1724552351434,15.6626,158.72,158.69,4.55274813]
[1724552351618,15.6626,158.72,158.67,17.11518809]
[1724552351946,15.6626,158.72,158.68,4.55255983]
[1724552352150,15.6626,158.72,158.69,4.55255983]
[1724552352316,15.6626,158.72,158.67,17.11518809]
[1724552352507,15.6626,158.72,158.68,4.55270864]
[1724552352712,15.6626,158.72,158.69,4.55270864]
[1724552352941,15.6626,158.72,158.67,17.10739971]
[1724552353147,15.6626,158.72,158.68,4.55243407]
[1724552353445,15.6626,158.72,158.69,4.55243407]
[1724552353743,15.6626,158.72,158.68,1.26016221]
[1724552353912,15.6626,158.72,158.69,4.55250613]
[1724552354108,15.6626,158.72,158.67,17.10739971]
[1724552354313,15.6626,158.72,158.68,4.55279089]
[1724552354513,15.6626,158.72,158.69,4.55279089]
[1724552354743,15.6626,158.72,158.68,1.26016048]
[1724552354952,15.6626,158.72,158.69,4.55306589]
[1724552355247,15.6626,158.72,158.68,1.26016048]
[1724552355446,15.6626,158.72,158.69,4.55342208]
[1724552355646,15.6626,158.72,158.67,17.10739971]
[1724552355814,15.6626,158.72,158.68,5.81352489]
[1724552356018,15.6626,158.72,158.68,1.26010656]
[1724552356331,15.6626,158.72,158.69,4.55341718]
[1724552356520,15.6626,158.72,158.67,7.34587693]
[1724552356738,15.6626,158.72,158.68,4.5527956]
[1724552356940,15.6626,158.72,158.69,4.5527956]
[1724552357118,15.6626,158.72,158.67,7.34587693]
[1724552357442,15.6626,158.72,158.68,4.55353717]
[1724552357746,15.6626,158.72,158.69,4.55353717]
[1724552357916,15.6626,158.72,158.67,7.34587693]
[1724552358118,15.6626,158.72,158.68,4.55320347]
[1724552358318,15.6626,158.72,158.69,4.55320347]
[1724552358547,15.6626,158.72,158.67,7.34587693]
[1724552358750,15.6626,158.72,158.68,49.55364216]
[1724552359052,15.6626,158.72,158.69,4.55364216]
[1724552359246,15.6626,158.72,158.68,45.0]
[1724552359422,15.6626,158.72,158.67,45.0]
[1724552359929,15.6626,158.72,158.68,11.89880623]
[1724552360239,15.6626,158.72,158.68,7.34558981]
[1724552363434,15.6626,158.72,158.66,20.0]
[1724552363636,15.6626,158.72,158.66,27.33910606]
[1724552366259,15.6626,158.72,158.67,45.0]
[1724552366755,15.6626,158.72,158.67,54.7631095]
[1724552367461,15.6626,158.72,158.68,7.33981563]
[1724552367641,15.6626,158.72,158.67,54.7631095]
[1724552368951,15.6626,158.72,158.66,20.0]
[1724552369175,15.6626,158.72,158.67,1.26026894]
[1724552369338,15.6626,158.72,158.66,7.34067809]
[1724552369555,15.6626,158.72,158.67,20.0]
[1724552369944,15.6626,158.72,158.66,7.34067809]
[1724552370259,6.098,158.71,158.65,7.34067809]
[1724552370437,6.098,158.71,158.64,7.34067809]
[1724552370752,6.098,158.71,158.59,7.81510432]
[1724552370753,15.8611095,158.71,158.6,17.10378759]
[1724552370956,22.1619095,158.71,158.61,7.34067809]
[1724552371168,22.1619095,158.71,158.6,9.7631095]
[1724552371169,22.1619095,158.71,158.62,7.34067809]
[1724552371359,22.1619095,158.71,158.6,9.7631095]
[1724552371360,22.1619095,158.71,158.63,7.34067809]
[1724552371566,22.1619095,158.71,158.61,7.34067809]
[1724552371739,22.1619095,158.71,158.62,7.34067809]
[1724552371941,22.1619095,158.71,158.61,7.34067809]
[1724552372134,22.1619095,158.71,158.62,7.34067809]
[1724552372456,22.1619095,158.71,158.61,7.34067809]
[1724552372761,22.1619095,158.71,158.62,65.0]
[1724552373069,22.1619095,158.71,158.63,7.34067809]
[1724552373252,22.1619095,158.71,158.62,65.0]
[1724552373860,15.8611095,158.71,158.62,65.0]
[1724552380843,6.57442375,158.7,158.62,65.0]
[1724552383169,6.57442375,158.7,158.63,0.59903834]
[1724552383350,6.57442375,158.7,158.63,1.26052869]
[1724552383548,6.57442375,158.7,158.62,65.0]
[1724552384681,6.57442375,158.7,158.63,2.72960793]
[1724552387082,6.57442375,158.7,158.62,65.0]
[1724552387456,6.57442375,158.7,158.63,2.72808995]
[1724552387779,6.57442375,158.7,158.63,5.45655978]
[1724552387953,6.57442375,158.7,158.63,2.72846983]
[1724552390571,6.57442375,158.7,158.64,1.26051298]
[1724552398078,6.57442375,158.7,158.63,2.73198528]
[1724552399205,6.57442375,158.7,158.62,65.0]
[1724552399363,6.57442375,158.7,158.63,2.73045302]
[1724552401990,6.57442375,158.7,158.62,65.0]
[1724552402183,6.57442375,158.7,158.63,2.73093991]
[1724552402568,6.57442375,158.7,158.63,2.73087551]
[1724552403303,15.8611095,158.71,158.63,2.73087551]
[1724552408375,15.8611095,158.71,158.64,2.73087551]
[1724552408576,15.8611095,158.71,158.63,2.73087551]
[1724552408778,15.8611095,158.71,158.64,2.73087551]
[1724552409075,15.8611095,158.71,158.63,2.73087551]
[1724552409276,15.8611095,158.71,158.62,65.0]
[1724552414102,15.6321,158.69,158.62,65.0]
[1724552420291,15.6321,158.69,158.63,4.56173741]
[1724552420508,15.6321,158.69,158.64,4.56173741]
[1724552420710,15.6321,158.69,158.65,4.56173741]
[1724552421016,15.6321,158.69,158.66,4.56173741]
[1724552421333,15.6321,158.69,158.67,4.56173741]
[1724552421616,15.6321,158.69,158.62,74.7631095]
[1724552424789,15.6321,158.69,158.63,1.16915954]
[1724552424985,15.6321,158.69,158.62,74.7631095]
[1724552429422,15.6321,158.69,158.63,0.57257082]
[1724552430024,15.6321,158.69,158.62,74.7631095]
[1724552430223,15.6321,158.69,158.63,1.2603859]
[1724552432489,15.6321,158.69,158.62,74.7631095]
[1724552432797,15.6321,158.69,158.63,0.76066111]
[1724552433624,15.6321,158.69,158.64,1.26038613]
[1724552434123,15.6321,158.69,158.62,74.7631095]
[1724552434919,15.6321,158.69,158.62,65.0]
[1724552437231,15.6321,158.69,158.62,74.7631095]
[1724552437718,15.6321,158.69,158.63,0.43182483]
[1724552441803,15.6321,158.69,158.64,9.7631095]
[1724552442009,15.6321,158.69,158.65,45.0]
[1724552454132,15.6321,158.69,158.64,45.0]
[1724552454310,15.6321,158.69,158.65,20.0]